[Event "*** Titled Tuesday Blitz"]
[Site "Chess.com"]
[Date "2020.04.28"]
[Round "4"]
[White "Biranidun"]
[Black "elohunter1999"]
[Result "1/2-1/2"]
[WhiteElo "2710"]
[BlackElo "2507"]
[TimeControl "180+1"]
[EndTime "10:39:51 PDT"]
[Termination "Game drawn by repetition"]

1. e4 {[%clk 0:03:00.9]} 1... c5 {[%clk 0:02:59.3]} 2. Nf3 {[%clk 0:03:00.7]}
2... Nc6 {[%clk 0:02:58.9]} 3. d4 {[%clk 0:03:01.3]} 3... cxd4 {[%clk
0:02:59.1]} 4. Nxd4 {[%clk 0:03:02.2]} 4... Nf6 {[%clk 0:02:59.2]} 5. Nc3 {[%clk
0:03:01.9]} 5... e5 {[%clk 0:02:59.7]} 6. Ndb5 {[%clk 0:03:01.8]} 6... d6 {[%clk
0:02:59.2]} 7. Bg5 {[%clk 0:03:01.6]} 7... a6 {[%clk 0:02:59.7]} 8. Na3 {[%clk
0:03:02]} 8... b5 {[%clk 0:03:00.3]} 9. Nd5 {[%clk 0:03:02.3]} 9... Be7 {[%clk
0:03:00.8]} 10. Bxf6 {[%clk 0:03:02.9]} 10... Bxf6 {[%clk 0:03:01.3]} 11. c3
{[%clk 0:03:03.8]} 11... Bg5 {[%clk 0:03:01.4]} 12. Nc2 {[%clk 0:03:03.2]} 12...
Rb8 {[%clk 0:03:01.3]} 13. a4 {[%clk 0:03:01.5]} 13... bxa4 {[%clk 0:03:02.2]}
14. Ncb4 {[%clk 0:03:00.9]} 14... Nxb4 {[%clk 0:03:02.8]} 15. Nxb4 {[%clk
0:03:01.3]} 15... Bd7 {[%clk 0:03:03]} 16. Bxa6 {[%clk 0:03:00.6]} 16... O-O
{[%clk 0:02:58.1]} 17. O-O {[%clk 0:02:58.6]} 17... Qb6 {[%clk 0:02:47.2]} 18.
g3 {[%clk 0:02:57.9]} 18... Kh8 {[%clk 0:02:39.2]} 19. Bd3 {[%clk 0:02:55.2]}
19... g6 {[%clk 0:02:25.2]} 20. Bc2 {[%clk 0:02:54.1]} 20... f5 {[%clk
0:02:16.8]} 21. exf5 {[%clk 0:02:42.7]} 21... Bxf5 {[%clk 0:02:17.2]} 22. Bxf5
{[%clk 0:02:41.9]} 22... Rxf5 {[%clk 0:02:18.1]} 23. Kg2 {[%clk 0:01:23.8]}
23... e4 {[%clk 0:01:55.3]} 24. Rxa4 {[%clk 0:01:16.1]} 24... Rbf8 {[%clk
0:01:53.8]} 25. Qe2 {[%clk 0:01:05.3]} 25... Be3 {[%clk 0:01:47.8]} 26. Ra6
{[%clk 0:00:36.7]} 26... Qc5 {[%clk 0:00:58.3]} 27. Rc6 {[%clk 0:00:35.9]} 27...
Qa7 {[%clk 0:00:57.2]} 28. Ra6 {[%clk 0:00:29.4]} 28... Qc5 {[%clk 0:00:41.2]}
29. Rc6 {[%clk 0:00:29.2]} 29... Qa7 {[%clk 0:00:34.5]} 30. Ra6 {[%clk
0:00:19.1]} 30... Qc5 {[%clk 0:00:20.9]} 1/2-1/2

[Event "*** Titled Tuesday Blitz"]
[Site "Chess.com"]
[Date "2020.04.28"]
[Round "4"]
[White "mfwagnerpeixoto"]
[Black "blitzking1729"]
[Result "0-1"]
[WhiteElo "2195"]
[BlackElo "2565"]
[TimeControl "180+1"]
[EndTime "10:39:51 PDT"]
[Termination "blitzking1729 won by resignation"]

1. e4 {[%clk 0:03:00.9]} 1... d6 {[%clk 0:02:59.9]} 2. d4 {[%clk 0:02:59.7]}
2... Nf6 {[%clk 0:03:00.3]} 3. Nc3 {[%clk 0:02:58.6]} 3... e5 {[%clk 0:03:00.5]}
4. Nf3 {[%clk 0:02:56.3]} 4... Nbd7 {[%clk 0:02:59.9]} 5. Bc4 {[%clk 0:02:51.2]}
5... Be7 {[%clk 0:02:59.9]} 6. O-O {[%clk 0:02:48.6]} 6... O-O {[%clk
0:02:59.4]} 7. a4 {[%clk 0:02:47.6]} 7... c6 {[%clk 0:02:59]} 8. h3 {[%clk
0:02:47.2]} 8... Qc7 {[%clk 0:02:58.8]} 9. Bb3 {[%clk 0:02:43.4]} 9... b6 {[%clk
0:02:58.2]} 10. Be3 {[%clk 0:02:41.5]} 10... Bb7 {[%clk 0:02:57]} 11. Nh4 {[%clk
0:02:35.7]} 11... Rfe8 {[%clk 0:02:51.5]} 12. Nf5 {[%clk 0:02:26.7]} 12... Bf8
{[%clk 0:02:45.6]} 13. dxe5 {[%clk 0:02:26.8]} 13... Nxe5 {[%clk 0:02:44.2]} 14.
Bg5 {[%clk 0:02:17]} 14... Nfd7 {[%clk 0:02:37.9]} 15. f4 {[%clk 0:02:11.3]}
15... Ng6 {[%clk 0:02:36.5]} 16. h4 {[%clk 0:02:06.4]} 16... Nc5 {[%clk
0:02:11.8]} 17. h5 {[%clk 0:01:54.4]} 17... Nxb3 {[%clk 0:02:04.9]} 18. hxg6
{[%clk 0:01:54.2]} 18... fxg6 {[%clk 0:01:58.9]} 19. cxb3 {[%clk 0:01:47.8]}
19... gxf5 {[%clk 0:01:57.5]} 20. exf5 {[%clk 0:01:48.7]} 20... d5 {[%clk
0:01:56.6]} 21. Qg4 {[%clk 0:01:28.1]} 21... Qf7 {[%clk 0:01:49.7]} 22. Rae1
{[%clk 0:01:21.4]} 22... Rxe1 {[%clk 0:01:43.4]} 23. Rxe1 {[%clk 0:01:20.4]}
23... Bc8 {[%clk 0:01:43.3]} 24. Re5 {[%clk 0:01:15.3]} 24... Bd6 {[%clk
0:01:41.7]} 25. Qe2 {[%clk 0:01:00.6]} 25... Bxe5 {[%clk 0:01:39]} 26. Qxe5
{[%clk 0:01:01.5]} 26... Bxf5 {[%clk 0:01:37.2]} 27. Qd6 {[%clk 0:00:57.2]}
27... Qd7 {[%clk 0:01:32.4]} 28. Qb4 {[%clk 0:00:51.4]} 28... d4 {[%clk
0:01:30.2]} 29. Nd1 {[%clk 0:00:51.3]} 29... c5 {[%clk 0:01:28.8]} 30. Qd2
{[%clk 0:00:49.6]} 30... Re8 {[%clk 0:01:25.6]} 31. Nf2 {[%clk 0:00:47.4]} 31...
d3 {[%clk 0:01:24.8]} 32. g4 {[%clk 0:00:37.3]} 32... Re2 {[%clk 0:01:23.5]} 33.
Qc3 {[%clk 0:00:37.3]} 33... Rxf2 {[%clk 0:01:04.3]} 34. Kxf2 {[%clk 0:00:21.9]}
34... d2 {[%clk 0:01:02.5]} 35. Qf3 {[%clk 0:00:17.8]} 35... d1=Q {[%clk
0:00:53]} 36. Qa8+ {[%clk 0:00:16.4]} 36... Qc8 {[%clk 0:00:49.1]} 0-1

[Event "*** Titled Tuesday Blitz"]
[Site "Chess.com"]
[Date "2020.04.28"]
[Round "4"]
[White "Kaua18"]
[Black "tamarozi99"]
[Result "1-0"]
[WhiteElo "2251"]
[BlackElo "1957"]
[TimeControl "180+1"]
[EndTime "10:39:51 PDT"]
[Termination "Kaua18 won by resignation"]

1. e4 {[%clk 0:03:00.9]} 1... c5 {[%clk 0:02:55.1]} 2. Nf3 {[%clk 0:03:00.8]}
2... Nc6 {[%clk 0:02:54.4]} 3. d4 {[%clk 0:03:00.9]} 3... cxd4 {[%clk
0:02:54.7]} 4. Nxd4 {[%clk 0:03:01.8]} 4... g6 {[%clk 0:02:55.3]} 5. c4 {[%clk
0:03:01.5]} 5... d6 {[%clk 0:02:54]} 6. Nc3 {[%clk 0:02:58.9]} 6... Nf6 {[%clk
0:02:52.5]} 7. Be2 {[%clk 0:02:57.6]} 7... Nxd4 {[%clk 0:02:51.7]} 8. Qxd4
{[%clk 0:02:58.5]} 8... Bg7 {[%clk 0:02:51.9]} 9. Be3 {[%clk 0:02:57.6]} 9...
O-O {[%clk 0:02:52.1]} 10. Qd2 {[%clk 0:02:56.4]} 10... Be6 {[%clk 0:02:52.3]}
11. O-O {[%clk 0:02:55.3]} 11... a5 {[%clk 0:02:52.3]} 12. b3 {[%clk 0:02:54.2]}
12... a4 {[%clk 0:02:47.2]} 13. Bd4 {[%clk 0:02:48.5]} 13... a3 {[%clk
0:02:21.3]} 14. Rad1 {[%clk 0:02:42.3]} 14... Qa5 {[%clk 0:02:16.5]} 15. f4
{[%clk 0:02:40.2]} 15... Rfc8 {[%clk 0:01:46.5]} 16. Bf3 {[%clk 0:02:39.9]}
16... Bd7 {[%clk 0:01:38.8]} 17. Rfe1 {[%clk 0:02:28.7]} 17... Rab8 {[%clk
0:01:37.3]} 18. e5 {[%clk 0:02:18.3]} 18... Ne8 {[%clk 0:01:20.3]} 19. exd6
{[%clk 0:02:11.7]} 19... exd6 {[%clk 0:01:19.6]} 20. Nd5 {[%clk 0:02:00.4]}
20... Qxd2 {[%clk 0:01:09]} 21. Ne7+ {[%clk 0:02:00]} 21... Kf8 {[%clk
0:01:06.7]} 22. Rxd2 {[%clk 0:02:00.4]} 22... Bxd4+ {[%clk 0:01:00.5]} 23. Rxd4
{[%clk 0:02:01.3]} 23... Rc5 {[%clk 0:00:59]} 24. b4 {[%clk 0:01:50]} 24... Rc7
{[%clk 0:00:53.3]} 25. Nd5 {[%clk 0:01:40]} 25... Rc6 {[%clk 0:00:45.6]} 26. b5
{[%clk 0:01:33.8]} 26... Rc5 {[%clk 0:00:41.8]} 27. Re3 {[%clk 0:01:33.7]} 27...
Be6 {[%clk 0:00:40]} 28. Rxa3 {[%clk 0:01:29]} 28... Bxd5 {[%clk 0:00:38.5]} 29.
Bxd5 {[%clk 0:01:29.9]} 29... Nf6 {[%clk 0:00:34.9]} 30. Bf3 {[%clk 0:01:28.4]}
30... Re8 {[%clk 0:00:27.5]} 31. h3 {[%clk 0:01:15]} 31... Re1+ {[%clk
0:00:24.7]} 32. Kf2 {[%clk 0:01:14.8]} 32... Rc1 {[%clk 0:00:23.7]} 33. Bxb7
{[%clk 0:01:07.9]} 33... R1xc4 {[%clk 0:00:21.8]} 34. Rxc4 {[%clk 0:01:08.1]}
34... Rxc4 {[%clk 0:00:22.1]} 35. Rb3 {[%clk 0:01:08.3]} 35... Rxf4+ {[%clk
0:00:21]} 36. Bf3 {[%clk 0:01:08.6]} 36... Rc4 {[%clk 0:00:15.1]} 37. b6 {[%clk
0:01:08]} 37... Rc8 {[%clk 0:00:14.5]} 38. b7 {[%clk 0:01:07.7]} 38... Rb8
{[%clk 0:00:14.7]} 39. a4 {[%clk 0:01:04.7]} 39... Ke7 {[%clk 0:00:12.6]} 40. a5
{[%clk 0:01:05.2]} 40... Kd7 {[%clk 0:00:10.6]} 41. a6 {[%clk 0:01:05.4]} 41...
d5 {[%clk 0:00:10.8]} 42. a7 {[%clk 0:01:04.9]} 1-0

[Event "*** Titled Tuesday Blitz"]
[Site "Chess.com"]
[Date "2020.04.28"]
[Round "4"]
[White "Triumphmate"]
[Black "ChelsieMonica"]
[Result "1-0"]
[WhiteElo "2529"]
[BlackElo "2337"]
[TimeControl "180+1"]
[EndTime "10:39:54 PDT"]
[Termination "Triumphmate won by checkmate"]

1. e4 {[%clk 0:03:00.9]} 1... e5 {[%clk 0:02:59.6]} 2. Nf3 {[%clk 0:03:01.4]}
2... Nc6 {[%clk 0:02:59.5]} 3. Nc3 {[%clk 0:03:02.3]} 3... Nf6 {[%clk
0:02:58.3]} 4. Bb5 {[%clk 0:03:02.6]} 4... Nd4 {[%clk 0:02:53.8]} 5. Ba4 {[%clk
0:03:02.1]} 5... Nxf3+ {[%clk 0:02:53.7]} 6. Qxf3 {[%clk 0:03:03]} 6... Be7
{[%clk 0:02:54.2]} 7. d3 {[%clk 0:03:03.5]} 7... O-O {[%clk 0:02:54.5]} 8. Bg5
{[%clk 0:03:03.4]} 8... d6 {[%clk 0:02:55]} 9. h3 {[%clk 0:03:03.8]} 9... c6
{[%clk 0:02:53.5]} 10. O-O {[%clk 0:03:03.1]} 10... a5 {[%clk 0:02:50.6]} 11.
Bb3 {[%clk 0:03:03]} 11... h6 {[%clk 0:02:45]} 12. Bxf6 {[%clk 0:03:02.3]} 12...
Bxf6 {[%clk 0:02:44.9]} 13. Qg3 {[%clk 0:03:03.2]} 13... Kh8 {[%clk 0:02:44.2]}
14. f4 {[%clk 0:03:02.3]} 14... exf4 {[%clk 0:02:40.7]} 15. Qxf4 {[%clk
0:03:03.2]} 15... Be5 {[%clk 0:02:36.7]} 16. Qf3 {[%clk 0:03:03.6]} 16... Bxc3
{[%clk 0:02:29.9]} 17. bxc3 {[%clk 0:03:03.3]} 17... a4 {[%clk 0:02:30.3]} 18.
Bxf7 {[%clk 0:03:01.8]} 18... Be6 {[%clk 0:02:26.3]} 19. Qh5 {[%clk 0:03:02.2]}
19... Ra5 {[%clk 0:01:54.6]} 20. Qg6 {[%clk 0:02:53.4]} 20... Bxh3 {[%clk
0:01:53.5]} 21. Bd5 {[%clk 0:01:51.3]} 21... cxd5 {[%clk 0:01:46.4]} 22. gxh3
{[%clk 0:01:48.9]} 22... dxe4 {[%clk 0:01:45.4]} 23. Qxe4 {[%clk 0:01:46.1]}
23... Re5 {[%clk 0:01:39.8]} 24. Qd4 {[%clk 0:01:42.1]} 24... Rfe8 {[%clk
0:01:22]} 25. Rf2 {[%clk 0:01:39.4]} 25... Qd7 {[%clk 0:01:13.9]} 26. Kh2 {[%clk
0:01:32.2]} 26... Rh5 {[%clk 0:01:08.8]} 27. h4 {[%clk 0:01:31.9]} 27... Qd8
{[%clk 0:01:02.1]} 28. Kh3 {[%clk 0:01:28.1]} 28... Qd7+ {[%clk 0:00:56.1]} 29.
Kh2 {[%clk 0:01:27.4]} 29... Ree5 {[%clk 0:00:40.2]} 30. Rg1 {[%clk 0:01:26.1]}
30... Qe7 {[%clk 0:00:36.1]} 31. Rg4 {[%clk 0:01:21.3]} 31... g5 {[%clk
0:00:34.1]} 32. Qxa4 {[%clk 0:01:04.3]} 32... Kh7 {[%clk 0:00:29.9]} 33. Qc4
{[%clk 0:01:02.6]} 33... d5 {[%clk 0:00:28.9]} 34. Qd4 {[%clk 0:00:57.9]} 34...
gxh4 {[%clk 0:00:27.9]} 35. Rgf4 {[%clk 0:00:53.9]} 35... Qd6 {[%clk 0:00:24.8]}
36. Kh1 {[%clk 0:00:48.7]} 36... Re7 {[%clk 0:00:22.4]} 37. Rf7+ {[%clk
0:00:46]} 37... Rxf7 {[%clk 0:00:16.1]} 38. Rxf7+ {[%clk 0:00:46.9]} 38... Kg6
{[%clk 0:00:14.8]} 39. Qg7# {[%clk 0:00:47.8]} 1-0

[Event "*** Titled Tuesday Blitz"]
[Site "Chess.com"]
[Date "2020.04.28"]
[Round "4"]
[White "rpragchess"]
[Black "viktorskliarov"]
[Result "1-0"]
[WhiteElo "2821"]
[BlackElo "2655"]
[TimeControl "180+1"]
[EndTime "10:39:55 PDT"]
[Termination "rpragchess won by resignation"]

1. Nf3 {[%clk 0:03:00.9]} 1... g6 {[%clk 0:02:59.4]} 2. e4 {[%clk 0:02:57.8]}
2... c5 {[%clk 0:02:58.4]} 3. c3 {[%clk 0:02:56.1]} 3... Bg7 {[%clk 0:02:58.1]}
4. d4 {[%clk 0:02:55.7]} 4... cxd4 {[%clk 0:02:58.1]} 5. cxd4 {[%clk 0:02:56.6]}
5... d5 {[%clk 0:02:58.4]} 6. e5 {[%clk 0:02:56.6]} 6... Nh6 {[%clk 0:02:58.6]}
7. h3 {[%clk 0:02:55.4]} 7... O-O {[%clk 0:02:57.5]} 8. Nc3 {[%clk 0:02:54.7]}
8... Nc6 {[%clk 0:02:57.5]} 9. Bb5 {[%clk 0:02:54.4]} 9... f6 {[%clk 0:02:56.4]}
10. O-O {[%clk 0:02:48.7]} 10... Nf7 {[%clk 0:02:56.1]} 11. Re1 {[%clk
0:02:37.5]} 11... a6 {[%clk 0:02:48.6]} 12. Bxc6 {[%clk 0:02:35.9]} 12... bxc6
{[%clk 0:02:48.9]} 13. Bf4 {[%clk 0:02:35.3]} 13... Bf5 {[%clk 0:02:04.9]} 14.
Rc1 {[%clk 0:02:20.1]} 14... Rc8 {[%clk 0:01:37.5]} 15. Na4 {[%clk 0:02:12.3]}
15... Be4 {[%clk 0:01:34.8]} 16. e6 {[%clk 0:01:44.7]} 16... Nd6 {[%clk
0:01:31.2]} 17. Nc5 {[%clk 0:01:45.1]} 17... Bxf3 {[%clk 0:00:50.3]} 18. Qxf3
{[%clk 0:01:46]} 18... Nf5 {[%clk 0:00:50.8]} 19. Qd3 {[%clk 0:01:42.2]} 19...
Qa5 {[%clk 0:00:48.7]} 20. a3 {[%clk 0:01:19.9]} 20... Qb5 {[%clk 0:00:48.2]}
21. Qd2 {[%clk 0:01:15.5]} 21... Rfe8 {[%clk 0:00:36]} 22. b4 {[%clk 0:01:13.6]}
22... Nd6 {[%clk 0:00:30.9]} 23. Bxd6 {[%clk 0:00:59.2]} 23... exd6 {[%clk
0:00:30.8]} 24. Nb3 {[%clk 0:00:58.5]} 24... Re7 {[%clk 0:00:29.5]} 25. Qf4
{[%clk 0:00:56.5]} 25... Qb8 {[%clk 0:00:27.9]} 26. Na5 {[%clk 0:00:55.6]} 26...
Qb6 {[%clk 0:00:11]} 27. Qxd6 {[%clk 0:00:53.5]} 27... Bf8 {[%clk 0:00:11.4]}
28. Rxc6 {[%clk 0:00:49]} 28... Rxc6 {[%clk 0:00:10.5]} 29. Nxc6 {[%clk
0:00:44.7]} 29... Re8 {[%clk 0:00:09.6]} 30. e7 {[%clk 0:00:43.5]} 30... Bh6
{[%clk 0:00:07.8]} 31. Qd7 {[%clk 0:00:34.4]} 1-0

[Event "*** Titled Tuesday Blitz"]
[Site "Chess.com"]
[Date "2020.04.28"]
[Round "4"]
[White "blobica"]
[Black "Durarbayli"]
[Result "0-1"]
[WhiteElo "2561"]
[BlackElo "2788"]
[TimeControl "180+1"]
[EndTime "10:39:55 PDT"]
[Termination "Durarbayli won by resignation"]

1. e4 {[%clk 0:03:00.9]} 1... c5 {[%clk 0:02:59.4]} 2. Nf3 {[%clk 0:03:00.6]}
2... d6 {[%clk 0:02:59.9]} 3. d4 {[%clk 0:02:59.5]} 3... cxd4 {[%clk 0:03:00.8]}
4. Qxd4 {[%clk 0:02:59.6]} 4... a6 {[%clk 0:02:54.7]} 5. c4 {[%clk 0:02:58.8]}
5... Nc6 {[%clk 0:02:54.7]} 6. Qd2 {[%clk 0:02:58.6]} 6... g6 {[%clk 0:02:53.5]}
7. Nc3 {[%clk 0:02:58.6]} 7... Bg7 {[%clk 0:02:46.8]} 8. Be2 {[%clk 0:02:55.4]}
8... Nf6 {[%clk 0:02:45.5]} 9. h3 {[%clk 0:02:54.3]} 9... O-O {[%clk 0:02:45.1]}
10. O-O {[%clk 0:02:53.7]} 10... Be6 {[%clk 0:02:42.1]} 11. Rb1 {[%clk
0:02:52.6]} 11... Qa5 {[%clk 0:02:34.8]} 12. b3 {[%clk 0:02:49.2]} 12... b5
{[%clk 0:02:32.7]} 13. cxb5 {[%clk 0:02:28.7]} 13... axb5 {[%clk 0:02:33.6]} 14.
b4 {[%clk 0:02:28.5]} 14... Nxb4 {[%clk 0:02:22.1]} 15. e5 {[%clk 0:02:27.2]}
15... dxe5 {[%clk 0:02:13.1]} 16. Nxe5 {[%clk 0:02:16.6]} 16... Nxa2 {[%clk
0:02:01.1]} 17. Bb2 {[%clk 0:01:55.8]} 17... b4 {[%clk 0:01:32.7]} 18. Nxa2
{[%clk 0:01:54.3]} 18... Qxa2 {[%clk 0:01:31.4]} 19. Qxb4 {[%clk 0:01:17.5]}
19... Rab8 {[%clk 0:01:22.2]} 20. Qd4 {[%clk 0:01:16.3]} 20... Nd7 {[%clk
0:01:07.9]} 21. f4 {[%clk 0:01:14.4]} 21... Nxe5 {[%clk 0:01:05.3]} 22. fxe5
{[%clk 0:01:13.5]} 22... Rfd8 {[%clk 0:01:03.2]} 23. Qc3 {[%clk 0:01:01.7]}
23... Rdc8 {[%clk 0:01:01.5]} 24. Qd4 {[%clk 0:00:55.8]} 24... Rc2 {[%clk
0:00:32.5]} 25. Ba3 {[%clk 0:00:25.4]} 25... Rxb1 {[%clk 0:00:27.4]} 26. Qd8+
{[%clk 0:00:22.6]} 26... Bf8 {[%clk 0:00:27.1]} 27. Bxe7 {[%clk 0:00:22.3]}
27... Rxf1+ {[%clk 0:00:26.6]} 28. Kh2 {[%clk 0:00:20.6]} 28... Rc8 {[%clk
0:00:23.9]} 0-1

[Event "*** Titled Tuesday Blitz"]
[Site "Chess.com"]
[Date "2020.04.28"]
[Round "4"]
[White "Ariadna_Atreides"]
[Black "fridaywins"]
[Result "0-1"]
[WhiteElo "2027"]
[BlackElo "2240"]
[TimeControl "180+1"]
[EndTime "10:39:55 PDT"]
[Termination "fridaywins won by checkmate"]

1. d4 {[%clk 0:03:00.9]} 1... Nf6 {[%clk 0:02:59.4]} 2. Nf3 {[%clk 0:03:01.3]}
2... g6 {[%clk 0:02:59.2]} 3. c4 {[%clk 0:02:56.3]} 3... Bg7 {[%clk 0:02:58.8]}
4. Nc3 {[%clk 0:02:56.9]} 4... O-O {[%clk 0:02:59.2]} 5. e4 {[%clk 0:02:56.7]}
5... d6 {[%clk 0:02:59.5]} 6. Be2 {[%clk 0:02:56.8]} 6... e5 {[%clk 0:02:59.7]}
7. d5 {[%clk 0:02:56.6]} 7... c5 {[%clk 0:02:57.5]} 8. Be3 {[%clk 0:02:50.1]}
8... Ng4 {[%clk 0:02:55.9]} 9. Bg5 {[%clk 0:02:49]} 9... f6 {[%clk 0:02:56.1]}
10. Bh4 {[%clk 0:02:48.9]} 10... Nh6 {[%clk 0:02:53.8]} 11. Qc2 {[%clk
0:02:31.4]} 11... Nf7 {[%clk 0:02:53.3]} 12. Nd2 {[%clk 0:02:26.6]} 12... h5
{[%clk 0:02:40.2]} 13. h3 {[%clk 0:02:17.9]} 13... Na6 {[%clk 0:02:38.9]} 14. a3
{[%clk 0:02:13.4]} 14... Nc7 {[%clk 0:02:38.4]} 15. g4 {[%clk 0:02:12.2]} 15...
g5 {[%clk 0:02:37.1]} 16. Bg3 {[%clk 0:02:08.6]} 16... h4 {[%clk 0:02:37.3]} 17.
Bh2 {[%clk 0:02:08.6]} 17... Nh8 {[%clk 0:02:38.2]} 18. O-O {[%clk 0:01:59.8]}
18... Ng6 {[%clk 0:02:37.9]} 19. b4 {[%clk 0:01:55.1]} 19... Rf7 {[%clk
0:02:28.8]} 20. bxc5 {[%clk 0:01:52.9]} 20... dxc5 {[%clk 0:02:28.5]} 21. Rab1
{[%clk 0:01:52.3]} 21... Bf8 {[%clk 0:02:27.7]} 22. Rfd1 {[%clk 0:01:40.5]}
22... Bd6 {[%clk 0:02:24.3]} 23. Nf1 {[%clk 0:01:27.5]} 23... Nf4 {[%clk
0:02:20.2]} 24. Bxf4 {[%clk 0:01:07.6]} 24... exf4 {[%clk 0:02:20.2]} 25. Nh2
{[%clk 0:01:04]} 25... Be5 {[%clk 0:02:01.2]} 26. Nf3 {[%clk 0:01:03.3]} 26...
Qd6 {[%clk 0:02:01.4]} 27. Bd3 {[%clk 0:00:58.7]} 27... Bd7 {[%clk 0:01:48.7]}
28. Rxb7 {[%clk 0:00:54.6]} 28... Be8 {[%clk 0:01:36.7]} 29. Rdb1 {[%clk
0:00:51.2]} 29... Re7 {[%clk 0:01:28.5]} 30. Nb5 {[%clk 0:00:35.8]} 30... Nxb5
{[%clk 0:01:09.5]} 31. Rxe7 {[%clk 0:00:36]} 31... Nd4 {[%clk 0:01:00]} 32.
Rxe8+ {[%clk 0:00:33.1]} 32... Rxe8 {[%clk 0:00:59]} 33. Nxd4 {[%clk 0:00:33.1]}
33... Bxd4 {[%clk 0:00:59.3]} 34. Qa4 {[%clk 0:00:18.1]} 34... Re7 {[%clk
0:00:52.5]} 35. Rb8+ {[%clk 0:00:16.6]} 35... Kg7 {[%clk 0:00:52.3]} 36. Qb5
{[%clk 0:00:15.2]} 36... f3 {[%clk 0:00:51.9]} 37. Re8 {[%clk 0:00:13.2]} 37...
Qg3+ {[%clk 0:00:48.5]} 38. Kh1 {[%clk 0:00:11.2]} 38... Qg2# {[%clk 0:00:48.4]}
0-1

[Event "*** Titled Tuesday Blitz"]
[Site "Chess.com"]
[Date "2020.04.28"]
[Round "4"]
[White "Maybe00"]
[Black "MartinMatthiesen"]
[Result "1-0"]
[WhiteElo "2767"]
[BlackElo "2467"]
[TimeControl "180+1"]
[EndTime "10:39:56 PDT"]
[Termination "Maybe00 won by resignation"]

1. d4 {[%clk 0:03:00.9]} 1... d5 {[%clk 0:02:58.1]} 2. c4 {[%clk 0:03:01.3]}
2... c6 {[%clk 0:02:58]} 3. Nf3 {[%clk 0:03:01.8]} 3... Nf6 {[%clk 0:02:58.1]}
4. Nc3 {[%clk 0:03:02.4]} 4... e6 {[%clk 0:02:58.3]} 5. Bg5 {[%clk 0:03:02.4]}
5... dxc4 {[%clk 0:02:43.5]} 6. e4 {[%clk 0:03:02.2]} 6... b5 {[%clk 0:02:43.2]}
7. e5 {[%clk 0:03:02.5]} 7... h6 {[%clk 0:02:43.5]} 8. Bh4 {[%clk 0:03:03]} 8...
g5 {[%clk 0:02:43.8]} 9. Nxg5 {[%clk 0:03:03.6]} 9... hxg5 {[%clk 0:02:44.1]}
10. Bxg5 {[%clk 0:03:04.3]} 10... Nbd7 {[%clk 0:02:44.3]} 11. exf6 {[%clk
0:03:04.8]} 11... Bb7 {[%clk 0:02:43.7]} 12. g3 {[%clk 0:03:05.1]} 12... Qb6
{[%clk 0:02:43.4]} 13. Bg2 {[%clk 0:03:05.2]} 13... O-O-O {[%clk 0:02:43.2]} 14.
O-O {[%clk 0:03:05.2]} 14... c5 {[%clk 0:02:43.2]} 15. d5 {[%clk 0:03:05.7]}
15... b4 {[%clk 0:02:40.2]} 16. Rb1 {[%clk 0:03:06.1]} 16... Qa6 {[%clk
0:02:22.6]} 17. dxe6 {[%clk 0:03:04.8]} 17... Bxg2 {[%clk 0:02:21.4]} 18. e7
{[%clk 0:03:04.7]} 18... Bxf1 {[%clk 0:02:18.2]} 19. Kxf1 {[%clk 0:03:04.8]}
19... Bxe7 {[%clk 0:02:07.9]} 20. fxe7 {[%clk 0:03:05.7]} 20... Rdg8 {[%clk
0:02:08.1]} 21. Ne4 {[%clk 0:03:05.2]} 21... c3+ {[%clk 0:01:15.6]} 22. Kg1
{[%clk 0:03:03.5]} 22... Rxg5 {[%clk 0:00:52.1]} 23. Nxg5 {[%clk 0:03:04.4]}
23... Qg6 {[%clk 0:00:51.9]} 24. bxc3 {[%clk 0:02:54]} 24... Qxg5 {[%clk
0:00:51.1]} 25. Qe2 {[%clk 0:02:54.1]} 25... Re8 {[%clk 0:00:47.1]} 26. Qa6+
{[%clk 0:02:51]} 26... Kb8 {[%clk 0:00:21.7]} 27. Qb5+ {[%clk 0:02:50.6]} 27...
Kc7 {[%clk 0:00:20.9]} 28. cxb4 {[%clk 0:02:32.3]} 28... Rxe7 {[%clk 0:00:20.6]}
29. Qa5+ {[%clk 0:02:24.2]} 29... Kc8 {[%clk 0:00:19.1]} 30. Qa6+ {[%clk
0:02:09.7]} 30... Kc7 {[%clk 0:00:18.4]} 31. Qxa7+ {[%clk 0:02:09.4]} 31... Kc8
{[%clk 0:00:18.2]} 32. bxc5 {[%clk 0:02:03.9]} 32... Qd5 {[%clk 0:00:17.2]} 33.
Qa6+ {[%clk 0:01:56.8]} 33... Kc7 {[%clk 0:00:17.6]} 34. Qa7+ {[%clk 0:01:42.4]}
34... Kc8 {[%clk 0:00:17.9]} 35. h4 {[%clk 0:01:29]} 35... Qc6 {[%clk
0:00:17.8]} 36. Rb8+ {[%clk 0:01:13.1]} 36... Nxb8 {[%clk 0:00:17.4]} 37. Qxe7
{[%clk 0:01:13.7]} 37... f6 {[%clk 0:00:16.6]} 38. h5 {[%clk 0:01:12.3]} 38...
Nd7 {[%clk 0:00:16.8]} 39. h6 {[%clk 0:01:12]} 39... Ne5 {[%clk 0:00:17]} 40. h7
{[%clk 0:00:57.2]} 40... Nf3+ {[%clk 0:00:16.4]} 41. Kf1 {[%clk 0:00:57.8]}
41... Nh2+ {[%clk 0:00:16.1]} 42. Ke1 {[%clk 0:00:50.9]} 42... Qf3 {[%clk
0:00:14.3]} 1-0